[Event "16th HSG Open-A 2022"]
[Site "Hilversum"]
[Date "2022.06.18"]
[Round "4.10"]
[White "Boekelman, Jan"]
[Black "De Groote, Ewoud"]
[Result "0-1"]
[ECO "A62"]
[WhiteElo "2116"]
[BlackElo "2230"]
[Annotator "TA"]
[PlyCount "90"]
[EventDate "2022.06.17"]
[EventCountry "NED"]
[SourceTitle "playchess.com"]
[Source "ChessBase"]
[SourceQuality "1"]
[TimeControl "6600+10"]

{[%evp 21,90,11,13,0,35,25,23,12,20,9,20,0,22,-49,-17,-22,87,93,92,69,65,21,38,0,68,35,100,74,152,39,330,323,314,-549,-521,-520,-511,-501,0,0,0,0,29,0,180,165,194,162,158,0,22,0,16,14,10,-129,-233,-227,-145,-666,-165,-801,-603,-1985,-1969,-1407,-722,-29978,-29979,-6187,-2281]} 1. d4 {[%emt 0:04:22]} Nf6 {[%emt 0:00:08]} 2. c4 {[%emt 0:00:07]} e6 {[%emt 0:00:06]} 3. g3 {[%emt 0:00:06]} c5 {[%emt 0:00:23]} 4. d5 {[%emt 0:00:06]} exd5 {[%emt 0:00:05]} 5. cxd5 {[%emt 0:00:08]} d6 {[%emt 0:00:05]} 6. Nc3 {[%emt 0:00:19]} g6 {[%emt 0:00:06]} 7. Bg2 {[%emt 0:00:08]} Bg7 {[%emt 0:00:04]} 8. Nf3 {[%emt 0:00:06]} O-O {[%emt 0:00:12]} 9. O-O {[%emt 0:00:07]} Re8 {[%emt 0:01:48]} 10. Bf4 {[%emt 0:00:08]} Ne4 {[%emt 0:02:24] 10...Bf5 is a critical line.} 11. Nxe4 {[%emt 0:00:14]} Rxe4 {[%emt 0:00:02]} 12. Nd2 {[%emt 0:00:13] A62: Modern Benoni: Fianchetto Variation without early ...Nbd7.} Rb4 {[%emt 0:02:09]} (12... Rxf4 $5 13. gxf4 Bxb2 $14) 13. a3 {[%emt 0:00:35]} Rxf4 {[%emt 0:00:55]} 14. gxf4 {[%emt 0:00:02] White has an edge.} Bxb2 {[%emt 0:00:24]} 15. Rb1 {[%emt 0:02:01]} Bg7 {[%emt 0:10:21]} 16. Nc4 {[%emt 0:02:29]} b6 {[%emt 0:07:54] [#]} 17. Ne5 $146 {[%emt 0:20:31]} ({Predecessor:} 17. e3 Ba6 18. Qa4 Bf8 19. Rfe1 Qf6 20. Bh3 Qh4 21. Kg2 f5 22. Rb3 Bxc4 23. Qxc4 {1-0 (62) Kaasen,T (2460)-Langheinrich,F (2351) Terme Catez 2022}) 17... Bf5 {[%emt 0:35:24]} (17... dxe5 $5 18. d6 Bf5 $1 19. Bxa8 Bxb1 20. Qxb1 exf4 $11) 18. e4 {[%emt 0:04:32]} dxe5 {[%emt 0:11:28]} (18... Bc8 $1 $11 {remains equal.} 19. Nd3 a5) 19. exf5 $16 {[%emt 0:01:01]} Nd7 {[%emt 0:01:02]} 20. d6 {[%emt 0:10:40] fxg6 is the strong threat.} Rb8 $1 {[%emt 0:02:54]} 21. fxg6 {[%emt 0:07:23]} hxg6 {[%emt 0:00:06]} 22. Qd5 {[%emt 0:02:47]} (22. f5 $5 gxf5 23. Bh3 $14) 22... Nf6 {[%emt 0:06:27]} ({Black should play} 22... exf4 $11 23. Rfe1 Bf8) 23. Qc6 $1 $14 {[%emt 0:02:41]} exf4 {[%emt 0:05:44]} (23... Nh5 $14) 24. Rfe1 {[%emt 0:05:09]} Ng4 {[%emt 0:10:45]} (24... Qd7 $142) 25. d7 {[%emt 0:14:39]} (25. Re7 $1 $16 {And now Rbe1 would win.} Bd4 26. Rf1 (26. Qd5 Qf8 $14)) 25... Qh4 $4 {[%emt 0:05:35][%mdl 8192]} (25... Ne5 $14 26. Rxe5 Bxe5) 26. Re8+ $18 {[%emt 0:01:54]} Kh7 {[%emt 0:01:42][%cal Og7d4]} 27. d8=Q {[%emt 0:06:18][%mdl 8192]} (27. Rxb8 Qxf2+ 28. Kh1 Qh4 $11) (27. Qf3 $1 $18 {is the narrow road to win.} Ne5 28. Qh3 Qxh3 29. Bxh3 Nxd7 30. Bxd7) 27... Qxf2+ $19 {[%emt 0:01:09]} 28. Kh1 {[%emt 0:00:02]} Rxd8 {[%emt 0:01:01]} 29. Rxd8 {[%emt 0:00:54]} Bd4 $2 {[%emt 0:00:55]} (29... Qh4 $19 {[%csl Gg4][%cal Rh4h2]} 30. Bh3 (30. h3 $2 Qxd8 31. Qd5 Qf6 $19) 30... Nf2+ 31. Kg2 Qxd8) 30. Rxd4 $1 $11 {[%emt 0:00:45]} Qxd4 $40 {[%emt 0:00:15][%mdl 128] Black attacks. The board is on fire.} 31. h3 {[%emt 0:24:53]} Ne3 {[%emt 0:02:50]} 32. Qe4 {[%emt 0:00:00] Strongly threatening Qxd4.} (32. Rg1 $5 {[%cal Rg2e4]} Kg7 33. Be4 $16) 32... Qxe4 {[%emt 0:00:00]} (32... Qf6 $11) 33. Bxe4 $18 {[%emt 0:00:00]} f5 {[%emt 0:00:05]} 34. Bf3 {[%emt 0:00:30]} g5 35. Rb2 $2 {[%emt 0:00:00]} (35. Kg1 $16) 35... c4 {[%emt 0:00:26][%cal Bc5c4,Bc4c3,Bc3c2][%mdl 32]} 36. Rd2 {[%emt 0:00:00]} c3 {[%emt 0:00:54]} 37. Rd7+ {[%emt 0:00:00]} Kg6 {[%emt 0:00:32] White must now prevent ...c2.} 38. Rd3 {[%emt 0:00:00] [#]} (38. Rd6+ $11 Kg7 39. Bd1) 38... c2 $1 $17 {[%emt 0:00:00][%mdl 1024] Black has strong compensation.} (38... g4 39. Rxc3 gxf3 40. Rc6+ Kg5 41. Kg1 $16) 39. Rc3 {[%emt 0:00:00] [#]} Kf6 $1 {[%emt 0:00:20] Threatens to win with ...Ke5.} ({Resist} 39... g4 40. hxg4 fxg4 41. Be4+ Kh5 42. Bxc2 $18) 40. Be2 $2 {[%emt 0:00:00][%mdl 8192]} (40. Bc6 $17 Ke5 41. Bb5) 40... Ke5 $19 {[%emt 0:00:00]} 41. Kg1 $2 {[%emt 0:01:10]} (41. Bb5) 41... Kd4 {[%emt 0:00:00]} 42. Rd3+ {[%emt 0:00:00]} Ke4 {[%emt 0:00:30]} 43. Rc3 {[%emt 0:00:00]} f3 {[%emt 0:00:00][%cal Bf4f3,Bf3f2][%mdl 32]} 44. Bb5 {[%emt 0:00:00]} f2+ {[%emt 0:00:04]} 45. Kh1 {[%emt 0:00:00]} f4 {[%emt 0:00:10] Weighted Error Value: White=1.03/Black=0.46} (45... g4 $142 46. Rxc2 Nxc2) 0-1

[Event "16th HSG Open-A 2022"]
[Site "Hilversum"]
[Date "2022.06.18"]
[Round "4.11"]
[White "Honkoop, Gilian"]
[Black "Jonsson, Gauti Pall"]
[Result "1-0"]
[ECO "E61"]
[WhiteElo "2197"]
[BlackElo "2065"]
[Annotator "TA"]
[PlyCount "153"]
[EventDate "2022.06.17"]
[EventCountry "NED"]
[SourceTitle "playchess.com"]
[Source "ChessBase"]
[SourceQuality "1"]
[TimeControl "6600+10"]

{[%evp 13,152,22,25,13,37,50,40,42,86,87,133,88,112,112,253,253,253,257,261,249,253,224,250,256,245,281,362,376,458,451,417,423,527,464,479,478,478,455,456,453,452,437,462,462,541,266,294,291,298,283,293,313,324,289,319,302,328,328,310,320,292,279,439,436,431,421,410,356,356,356,353,349,697,545,507,496,740,733,889,875,833,816,730,616,564,404,418,395,418,285,282,280,594,561,671,677,1239,1236,1156,1098,1070,958,782,774,959,883,4870,1222,3927,3657,1882,1838,6386,11577,29968,29970,29975,29967,29975,29976,29981,29982,29981,29982,29982,29983,29985,29986,29988,29989,29989,29990,29990,29991,29991,29991,29994,29995,29995,29996,29999]} 1. c4 {[%emt 0:00:43]} Nf6 {[%emt 0:01:27]} 2. Nf3 {[%emt 0:00:06]} g6 {[%emt 0:01:01]} 3. d4 {[%emt 0:00:05]} Bg7 {[%emt 0:00:30]} 4. Nc3 {[%emt 0:00:05]} O-O {[%emt 0:01:26]} 5. Bg5 {[%emt 0:00:09]} h6 {[%emt 0:02:20]} 6. Bh4 {[%emt 0:00:05]} c5 {[%emt 0:01:30]} 7. d5 {[%emt 0:03:48]} d6 {[%emt 0:05:39]} 8. e4 {[%emt 0:04:13] E61: King's Indian: Early deviations for White, including Smyslov System.} Qb6 {[%emt 0:05:45]} 9. Qc2 {[%emt 0:01:38]} e6 {[%emt 0:03:30]} 10. Nd2 {[%emt 0:03:19] [#] White is slightly better.} Nbd7 $146 {[%emt 0:07:18]} ({Predecessor:} 10... Nh5 11. f3 e5 12. g4 Nf4 13. O-O-O a6 14. Qb3 Qc7 15. Na4 Nd7 16. Nb1 Rb8 {0-1 (46) Kryger,O (2075)-Moser,E (2223) Litohoto 1999}) 11. Be2 {[%emt 0:00:56]} a6 {[%emt 0:05:34]} ({Better is} 11... Re8) 12. O-O {[%emt 0:00:54]} exd5 {[%emt 0:05:00]} 13. cxd5 {[%emt 0:00:16]} (13. exd5 $6 Ne5 $11) 13... Nh7 {[%emt 0:06:58]} (13... Qc7 $16) 14. Nc4 $18 {[%emt 0:01:19]} Qc7 {[%emt 0:00:47]} 15. Be7 {[%emt 0:00:16][%csl LRd6,LRf8]} Re8 {[%emt 0:00:12]} 16. Bxd6 {[%emt 0:00:14]} Qd8 {[%emt 0:00:07]} 17. a4 {[%emt 0:01:33] Against b5} Bd4 {[%emt 0:01:36]} 18. Bg3 {[%emt 0:02:21]} h5 {[%emt 0:02:22]} 19. h3 {[%emt 0:04:57][%cal Bh2h3,Bh3h4][%mdl 32]} Qg5 {[%emt 0:01:41] ...Qxg3 is the strong threat.} 20. Kh1 {[%emt 0:02:07]} f5 {[%emt 0:06:58]} 21. exf5 {[%emt 0:01:43]} gxf5 {[%emt 0:00:35]} 22. Bd3 {[%emt 0:01:34]} (22. Nd6 Rf8 23. Bd3 Ne5 24. Bxe5 Bxe5 $18) 22... Nhf6 {[%emt 0:02:42]} 23. h4 {[%emt 0:08:34]} Qh6 {[%emt 0:03:11]} 24. Bxf5 {[%emt 0:01:02]} Ne5 {[%emt 0:01:30] White must now prevent ...Bxf5.} 25. Nd6 {[%emt 0:02:42]} Bxf5 {[%emt 0:01:30]} 26. Nxf5 {[%emt 0:11:17]} ({Don't do} 26. Qxf5 Re7 27. Rae1 Ne8 $18) 26... Qh7 {[%emt 0:00:45]} 27. Rae1 {[%emt 0:05:55]} Neg4 {[%emt 0:04:02]} 28. d6 {[%emt 0:02:34]} Be5 {[%emt 0:04:12]} 29. Ne7+ {[%emt 0:04:42]} (29. Bxe5 $142 Nxe5 30. Ne2) 29... Rxe7 {[%emt 0:01:11]} 30. Qxh7+ {[%emt 0:00:06][%mdl 64] [#] Deflection} Rxh7 {[%emt 0:00:32]} 31. Bxe5 {[%emt 0:00:04]} Nxe5 {[%emt 0:02:16]} 32. Rxe5 {[%emt 0:00:05]} Rd7 {[%emt 0:00:16]} 33. Rd1 {[%emt 0:01:55]} ({But not} 33. Rxc5 Re8 34. Nd5 Rxd6 $18) 33... Rad8 {[%emt 0:00:55]} 34. Rxc5 {[%emt 0:01:49]} Rxd6 {[%emt 0:00:34]} 35. Rxd6 {[%emt 0:00:06]} Rxd6 {[%emt 0:00:06][%mdl 4096] Endgame KRN-KRN} 36. Rc8+ {[%emt 0:00:05]} Kg7 {[%emt 0:01:52]} 37. Rc7+ {[%emt 0:00:05]} Kg6 {[%emt 0:00:27]} (37... Rd7 $142 38. Rxd7+ Nxd7) 38. Rxb7 {[%emt 0:00:20]} Ng4 {[%emt 0:00:13]} 39. f3 {[%emt 0:00:27]} Ne3 {[%emt 0:00:37]} 40. Rb4 {[%emt 0:11:48]} Rd2 {[%emt 0:01:43]} 41. g4 {[%emt 0:00:08]} hxg4 {[%emt 0:00:21]} 42. fxg4 {[%emt 0:00:06]} Nc2 $2 {[%emt 0:00:12]} (42... Rg2 43. Rb6+ Kf7) 43. Rb6+ {[%emt 0:02:11]} Kg7 {[%emt 0:00:13]} 44. Ne4 {[%emt 0:01:07]} Re2 {[%emt 0:00:39]} (44... Rd4 $142 45. Re6 Kf7) 45. Ng3 {[%emt 0:00:22]} Rd2 {[%emt 0:00:19]} 46. Nf5+ {[%emt 0:00:37]} Kg8 {[%emt 0:00:21]} 47. Rd6 {[%emt 0:01:39]} Re2 {[%emt 0:00:39]} 48. Ng3 {[%emt 0:01:16]} Rf2 {[%emt 0:01:12]} 49. Rd8+ {[%emt 0:02:59]} Kf7 {[%emt 0:00:40]} 50. Rd7+ {[%emt 0:04:35]} Ke6 {[%emt 0:01:52]} 51. Rd3 {[%emt 0:01:20]} Rf4 {[%emt 0:05:06]} 52. Rc3 {[%emt 0:02:51]} Nd4 {[%emt 0:01:13]} (52... Rxg4 {is a better chance.} 53. Kg2 (53. Rxc2 Rxg3 54. h5 Rd3 $18) 53... Nd4 54. Re3+ Kd5) 53. Re3+ {[%emt 0:00:43]} Kf7 {[%emt 0:02:05]} 54. Re4 {[%emt 0:00:19]} Ne6 {[%emt 0:01:07]} 55. Rxf4+ {[%emt 0:00:08]} Nxf4 {[%emt 0:00:07] KN-KN} 56. Nf5 {[%emt 0:01:54]} Nd3 {[%emt 0:00:24]} 57. Nd6+ {[%emt 0:03:27]} Ke6 {[%emt 0:00:35]} 58. Nc4 {[%emt 0:00:02]} Nf2+ {[%emt 0:00:31]} 59. Kg2 {[%emt 0:00:02]} Nxg4 {[%emt 0:00:08]} 60. Kf3 {[%emt 0:01:02]} Nf6 {[%emt 0:00:58]} 61. b4 {[%emt 0:00:25]} Kd5 {[%emt 0:00:55]} 62. Na3 {[%emt 0:00:33]} Ke5 {[%emt 0:02:03]} 63. b5 {[%emt 0:00:42]} axb5 {[%emt 0:00:06]} 64. axb5 {[%emt 0:00:02][%cal Ba4b5,Bb5b6,Bb6b7][%mdl 32] White mates.} Nd5 {[%emt 0:00:57]} 65. Kg4 {[%emt 0:00:30]} Kf6 {[%emt 0:00:51]} 66. Nc4 {[%emt 0:00:40]} Ne7 {[%emt 0:00:27]} 67. b6 {[%emt 0:00:32]} Nc6 {[%emt 0:00:40]} 68. b7 {[%emt 0:00:30]} Kg6 {[%emt 0:00:23]} 69. h5+ {[%emt 0:00:04]} Kh6 {[%emt 0:00:15]} 70. Kh4 {[%emt 0:00:01]} Kh7 {[%emt 0:00:52] [#]} 71. Ne5 $1 {[%emt 0:00:29][%mdl 512]} Nb8 {[%emt 0:00:09]} 72. Kg5 {[%emt 0:00:04]} Kg7 {[%emt 0:00:06]} 73. h6+ {[%emt 0:00:02]} Kh7 {[%emt 0:00:13]} 74. Kh5 {[%emt 0:00:01]} Kh8 {[%emt 0:00:21]} 75. Kg6 {[%emt 0:00:11]} Kg8 {[%emt 0:00:15]} 76. h7+ {[%emt 0:00:04]} Kh8 {[%emt 0:00:05]} 77. Nf7# {[%emt 0:05:25] Black did not feel at home in the position after the opening.  Weighted Error Value: White=0.19 (very precise) /Black=0.42} 1-0

[Event "16th HSG Open-A 2022"]
[Site "Hilversum"]
[Date "2022.06.18"]
[Round "4.12"]
[White "Albers, Sasa"]
[Black "Berrevoets, Jeroen"]
[Result "0-1"]
[ECO "C07"]
[WhiteElo "2117"]
[BlackElo "2035"]
[Annotator "TA"]
[PlyCount "90"]
[EventDate "2022.06.17"]
[EventCountry "NED"]
[SourceTitle "playchess.com"]
[Source "ChessBase"]
[SourceQuality "1"]
[TimeControl "6600+10"]

{[%evp 14,90,7,8,29,16,36,0,-8,-19,-35,-77,-75,-113,-38,-58,-54,-95,-94,-86,-75,-83,0,0,0,0,0,0,0,0,0,0,0,7,20,-28,-31,-22,15,0,0,-64,-59,-197,-196,-304,-38,-368,-350,-238,-226,-413,-412,-394,-250,-235,-237,-243,-239,-377,-386,-366,-388,-369,-380,-374,-375,-399,-347,-399,-291,-480,-466,-579,-576,-619,-490,-29981,-29982]} 1. e4 {[%emt 0:00:03]} e6 {[%emt 0:00:40]} 2. d4 {[%emt 0:00:12]} d5 {[%emt 0:00:06]} 3. Nd2 {[%emt 0:00:21]} c5 {[%emt 0:00:14]} 4. Ngf3 {[%emt 0:00:09]} cxd4 {[%emt 0:00:27]} 5. Nxd4 {[%emt 0:00:20]} Nc6 {[%emt 0:00:10]} 6. Bb5 {[%emt 0:00:05]} Bd7 {[%emt 0:00:12]} 7. Nxc6 {[%emt 0:00:08]} bxc6 {[%emt 0:00:57]} 8. Bd3 {[%emt 0:00:02]} Bd6 {[%emt 0:00:26] C07: French Tarrasch: 3...c5, 4 Ngf3 and 4 exd5 Qxd5.} 9. Qe2 {[%emt 0:00:21]} e5 $1 {[%emt 0:08:35][%mdl 4] is more profitable than 9...Ne7 at the moment.} 10. Nf3 {[%emt 0:32:55]} Qe7 {[%emt 0:06:28] [#] The position is equal.} 11. Bg5 $146 {[%emt 0:08:07]} ({Predecessor:} 11. Ba6 Nf6 12. Bg5 Rb8 13. O-O O-O 14. b3 h6 15. Bxf6 Qxf6 16. Rad1 Rfe8 17. c3 {1-0 (50) Safarli,E (2667)-Kanmazalp,O (2481) Ankara 2018}) 11... f6 {[%emt 0:02:02]} 12. Bh4 {[%emt 0:00:09]} Rb8 {[%emt 0:08:48]} 13. Rb1 {[%emt 0:09:14]} Qf7 {[%emt 0:07:14]} ({Black should try} 13... dxe4 $17 14. Bxe4 g5 15. Nxg5 (15. Bg3 $2 f5 $17) 15... fxg5 16. Qh5+ Kd8 17. Bxg5 Nf6) 14. exd5 {[%emt 0:14:24]} cxd5 {[%emt 0:00:21] Threatens to win with ...Ne7.} 15. Nd4 {[%emt 0:00:10][%cal Bf3d4,Bd4b5,Bb5c7][%mdl 32]} Be7 {[%emt 0:12:29]} 16. Bg3 {[%emt 0:10:35]} Rb6 {[%emt 0:03:32]} 17. Nb5 {[%emt 0:04:00] [#]} a6 {[%emt 0:06:20]} ({Better is} 17... Nh6 $1 $17) 18. Nc7+ $11 {[%emt 0:05:48]} Kf8 {[%emt 0:03:32]} 19. Nxa6 {[%emt 0:07:50]} e4 {[%emt 0:02:54]} 20. Qe3 {[%emt 0:00:01]} Qe6 {[%emt 0:04:15]} 21. Nc5 {[%emt 0:00:44]} Bxc5 {[%emt 0:02:59]} 22. Qxc5+ {[%emt 0:00:02]} Ne7 {[%emt 0:00:46][%cal Bg8e7,Be7f5,Bf5e3,Be3g2][%mdl 32]} (22... Qe7 23. Qxb6 exd3+ 24. Qe3 dxc2 25. Rc1 $16) 23. Be2 {[%emt 0:00:38] next c4 is good for White.} Kf7 {[%emt 0:02:31]} 24. c3 {[%emt 0:01:09]} (24. c4 $142 Rc8 25. Qd4 dxc4 26. O-O) 24... Ra8 {[%emt 0:01:28][%mdl 1024] Black has compensation.} 25. a3 {[%emt 0:02:35]} Rc8 {[%emt 0:03:45]} (25... Ba4 $5 {[%cal Ra4c2]}) 26. Qd4 {[%emt 0:02:02]} Nf5 $36 {[%emt 0:02:36][%mdl 2048] Black has good play.} 27. Qd2 {[%emt 0:02:51]} (27. Qd1 $1 $11) 27... e3 $15 {[%emt 0:05:50] Black is more active.} 28. fxe3 {[%emt 0:00:02] White is now going downhill.} ({White has to play} 28. Qd1 $1 $15) 28... Nxe3 $19 {[%emt 0:00:57] aiming for ...d4.} 29. Bf2 {[%emt 0:03:28]} (29. Bf4 {only move.} Qe4 30. Bxe3 Qxb1+ 31. Kf2 Qxb2 32. Rd1 (32. Qxd5+ $2 Be6 $19)) 29... Qe4 $2 {[%emt 0:05:37]} ({Black should play} 29... Nxg2+ $19 30. Kd1 (30. Kf1 $2 Qe4 $19) 30... d4 31. Bxd4 Rd6) 30. Qd3 $2 {[%emt 0:04:38][%mdl 8192]} (30. Bd3 $1 $15 Nxg2+ 31. Kd1 Qf3+ 32. Kc2 Ba4+ 33. b3 Rxb3 34. Rxb3) 30... Nxg2+ {[%emt 0:01:44]} 31. Kd1 {[%emt 0:00:01]} Ba4+ {[%emt 0:04:54]} 32. Kd2 $2 {[%emt 0:00:01]} (32. b3 Bxb3+ 33. Kd2 Qf4+ 34. Be3 Nxe3 35. Qxe3 Qxe3+ 36. Kxe3) 32... Qf4+ {[%emt 0:02:44]} 33. Be3 {[%emt 0:00:01]} Qxe3+ {[%emt 0:00:39] Really sharp!} (33... Nxe3 $142 34. Qxe3 Qb8) 34. Qxe3 {[%emt 0:00:01]} Nxe3 {[%emt 0:00:09]} 35. Kxe3 {[%emt 0:00:03]} Bc2 {[%emt 0:00:31]} 36. Bf3 {[%emt 0:00:41]} (36. Kd4 $142) 36... Bxb1 {[%emt 0:00:38]} 37. Bxd5+ {[%emt 0:00:01]} Ke7 {[%emt 0:00:34]} 38. Rxb1 {[%emt 0:00:03]} Rxc3+ $1 {[%emt 0:00:03][%mdl 4096] Endgame KRR-KRB} 39. Kd4 {[%emt 0:00:51]} Rc2 {[%emt 0:01:15][%csl LRb2,LRh2]} 40. b4 {[%emt 0:00:22]} Kd6 {[%emt 0:00:43] Hoping for ...Rd2+.} 41. Be4 {[%emt 0:01:12]} Ra2 {[%emt 0:00:40]} 42. Rb3 $2 {[%emt 0:00:02]} (42. Rd1 {was called for.}) 42... Ra6 {[%emt 0:00:21]} 43. Rg3 {[%emt 0:00:46]} g6 {[%emt 0:00:20]} 44. Rh3 {[%emt 0:00:09]} Ra7 {[%emt 0:00:16]} 45. b5 {[%emt 0:00:11] [#]} (45. Rc3 $19 f5 46. Rc6+ Kd7 47. Bd5) 45... Ra4+ {[%emt 0:00:02] Weighted Error Value: White=0.83/Black=0.29 (precise)} 0-1

[Event "16th HSG Open-A 2022"]
[Site "Hilversum"]
[Date "2022.06.19"]
[Round "5.1"]
[White "Lanchava, Tea"]
[Black "Beerdsen, Thomas"]
[Result "1/2-1/2"]
[ECO "A22"]
[WhiteElo "2232"]
[BlackElo "2497"]
[Annotator "TA"]
[PlyCount "65"]
[EventDate "2022.06.17"]
[EventCountry "NED"]
[SourceTitle "playchess.com"]
[Source "ChessBase"]
[SourceQuality "1"]
[TimeControl "6600+10"]

{[%evp 9,65,64,63,65,66,0,49,6,47,38,47,53,84,94,104,91,128,131,131,131,123,110,126,112,118,65,65,64,43,53,47,10,9,9,9,9,9,9,9,9,9,0,0,0,0,0,8,9,9,3,10,-12,26,26,25,60,15,-15]} 1. c4 {[%emt 0:00:33]} e5 {[%emt 0:00:15]} 2. Nc3 {[%emt 0:00:15]} Nf6 {[%emt 0:00:08]} 3. Nf3 {[%emt 0:00:26]} e4 {[%emt 0:00:11]} 4. Ng5 {[%emt 0:03:39]} c6 {[%emt 0:00:08]} 5. Ngxe4 {[%emt 0:04:37]} Nxe4 {[%emt 0:00:18]} 6. Nxe4 {[%emt 0:00:05] A22: English Opening: 1...e5 2 Nc3 Nf6.} d5 {[%emt 0:00:07]} 7. Ng3 {[%emt 0:07:32]} (7. cxd5 $14 cxd5 8. Ng3 (8. Qa4+ $2 Bd7 $19)) 7... h5 {[%emt 0:00:40] [#]} (7... dxc4 $11 {is superior.} 8. b3 h5) 8. h4 $146 {[%emt 0:04:27] White is slightly better.} ({Predecessor:} 8. e3 h4 9. Ne2 dxc4 10. Nc3 Be6 11. d3 cxd3 12. Qxd3 Nd7 13. Bd2 Qb6 14. Qc2 {0-1 (30) Yang,K (2481)-Beerdsen,T (2508) Chess.com INT 2022}) 8... Bg4 {[%emt 0:03:48]} 9. Qb3 {[%emt 0:04:16]} Bd6 {[%emt 0:10:08]} 10. cxd5 {[%emt 0:10:47]} cxd5 {[%emt 0:04:40]} 11. Qxd5 {[%emt 0:03:12]} Nc6 {[%emt 0:10:00][%cal Bb8c6,Bc6b4,Bb4c2,Bc2a1,Ba1b3][%mdl 32]} 12. Ne4 {[%emt 0:03:18]} Be7 {[%emt 0:10:07]} 13. Qxd8+ {[%emt 0:06:57]} Rxd8 {[%emt 0:00:09]} 14. f3 {[%emt 0:08:50]} Be6 {[%emt 0:04:01]} 15. Kf2 {[%emt 0:04:41]} Nb4 {[%emt 0:09:05]} 16. b3 {[%emt 0:04:05]} O-O {[%emt 0:00:25]} 17. Bb2 {[%emt 0:02:28]} (17. e3 $16) 17... f5 $14 {[%emt 0:04:38]} 18. Ng5 {[%emt 0:00:15]} Bxg5 {[%emt 0:04:54]} 19. hxg5 {[%emt 0:00:07] Threatens to win with Bc3.} Rxd2 {[%emt 0:00:24]} 20. Ba3 {[%emt 0:08:16][%cal Bb2a3,Ba3f8,Bf8b4,Bb4c3,Bc3e5][%mdl 32]} Nc2 $36 {[%emt 0:04:26][%mdl 2048] Black has the initiative.} 21. Bxf8 {[%emt 0:00:06]} Nxa1 {[%emt 0:00:06]} 22. Bb4 {[%emt 0:00:21]} Rxa2 {[%emt 0:00:19]} 23. g6 {[%emt 0:00:34]} Nxb3 {[%emt 0:02:05]} 24. Rxh5 {[%emt 0:00:31][%cal Og2g4]} a5 {[%emt 0:03:05]} 25. Bc3 {[%emt 0:04:32]} Rc2 $1 {[%emt 0:00:42]} 26. Be5 {[%emt 0:00:05]} Rc5 {[%emt 0:00:32]} 27. Bb2 {[%emt 0:00:40]} b5 {[%emt 0:09:37]} 28. Rh7 {[%emt 0:01:20]} Rc7 {[%emt 0:00:44]} 29. Be5 {[%emt 0:01:43]} Rb7 {[%emt 0:02:21]} 30. g4 {[%emt 0:01:37]} a4 {[%emt 0:01:57]} 31. f4 {[%emt 0:00:59] [#] Black must now prevent Bg2.} fxg4 {[%emt 0:09:43]} 32. Bg2 {[%emt 0:01:24] Prevents Bd5.} Re7 {[%emt 0:00:36]} 33. Bc6 {[%emt 0:11:11] Weighted Error Value: White=0.11 (very precise) /Black=0.09 (flawless)} 1/2-1/2

[Event "16th HSG Open-A 2022"]
[Site "Hilversum"]
[Date "2022.06.19"]
[Round "5.2"]
[White "Van Foreest, Machteld"]
[Black "Harff, Marcel"]
[Result "0-1"]
[ECO "C01"]
[WhiteElo "2287"]
[BlackElo "2336"]
[Annotator "TA"]
[PlyCount "62"]
[EventDate "2022.06.17"]
[EventCountry "NED"]
[SourceTitle "playchess.com"]
[Source "ChessBase"]
[SourceQuality "1"]
[TimeControl "6600+10"]

{[%evp 9,62,-7,0,0,18,-7,0,-89,-89,-81,-85,-106,-90,-96,-89,-282,-257,-237,-247,-371,-392,-466,-467,-466,-467,-453,-443,-635,-473,-627,-623,-708,-702,-738,-736,-705,-701,-1664,-1104,-1064,-1041,-3599,-5010,-5306,-5381,-3251,-2456,-6400,-6393,-6303,-6423,-6187,-6087,-2408,-1584]} 1. e4 {[%emt 0:03:50]} e6 {[%emt 0:00:12]} 2. d4 {[%emt 0:00:02]} d5 {[%emt 0:00:07]} 3. Bd3 {[%emt 0:00:04][%cal Bf1d3,Bd3e4,Be4f3][%mdl 32]} dxe4 {[%emt 0:00:35]} 4. Bxe4 {[%emt 0:00:04]} Nf6 {[%emt 0:00:09]} 5. Bf3 {[%emt 0:00:03]} Nbd7 {[%emt 0:00:08]} 6. Ne2 {[%emt 0:00:07] C01: French: Exchange Variation.} e5 {[%emt 0:00:52] [#] White must now prevent ...e4.} 7. Bg5 {[%emt 0:09:49] [#]} h6 $146 {[%emt 1:49:17]} ({Predecessor:} 7... Be7 8. Bxf6 Bxf6 9. Nbc3 exd4 10. Nxd4 Ne5 11. O-O Qxd4 {0-1 (11) Ezra,P (2162)-Miedema,D (2373) Helsingor 2017}) 8. dxe5 {[%emt 0:03:54]} (8. Bxf6 $11 Nxf6 9. Nbc3 (9. dxe5 Qxd1+ 10. Kxd1 Ng4 $15)) 8... hxg5 $17 {[%emt 0:00:00]} 9. exf6 {[%emt 0:00:05]} Qxf6 {[%emt 0:00:00]} 10. Qd4 {[%emt 0:12:22]} Bc5 {[%emt 0:00:00]} 11. Qxf6 {[%emt 0:08:37]} Nxf6 {[%emt 0:00:00]} 12. g3 $2 {[%emt 0:04:02]} (12. Nd2 $17) 12... Ng4 $19 {[%emt 0:00:00]} 13. Bxg4 {[%emt 0:09:38]} Bxg4 {[%emt 0:00:00]} 14. Nd2 {[%emt 0:00:29] Prevents Bf3.} (14. h4 {might work better.}) 14... O-O-O {[%emt 0:00:00]} 15. h3 {[%emt 0:07:31]} Bxe2 {[%emt 0:00:00] Black is clearly winning.} 16. Kxe2 {[%emt 0:00:23]} Rhe8+ {[%emt 0:00:00]} 17. Kd1 {[%emt 0:00:23]} Bxf2 {[%emt 0:00:00]} 18. c3 {[%emt 0:05:03]} (18. a4 $142 Bxg3 19. Ra3) 18... Rd6 {[%emt 0:00:00]} 19. Rc1 {[%emt 0:01:17]} Bxg3 {[%emt 0:00:00]} 20. Rc2 {[%emt 0:00:56]} Bf4 {[%emt 0:00:00]} 21. Rf1 {[%emt 0:01:09]} Red8 {[%emt 0:00:00][%cal Rd6d2]} 22. Rf2 {[%emt 0:00:12]} f5 {[%emt 0:00:00] [#] aiming for ...Rxd2+.} 23. Re2 {[%emt 0:00:21]} Rxd2+ {[%emt 0:00:00]} 24. Rcxd2 {[%emt 0:00:05]} Rxd2+ {[%emt 0:00:00]} 25. Rxd2 {[%emt 0:00:02]} Bxd2 {[%emt 0:00:00]} 26. Kxd2 {[%emt 0:00:02][%mdl 4096] Endgame KP-KP} Kd7 {[%emt 0:00:00]} 27. Ke3 {[%emt 0:00:06]} Ke6 {[%emt 0:00:00]} 28. Kd4 {[%emt 0:00:03]} b6 {[%emt 0:00:00]} 29. b3 {[%emt 0:00:15]} c5+ {[%emt 0:00:00]} 30. Ke3 {[%emt 0:00:02]} Ke5 {[%emt 0:00:00]} 31. Kf3 {[%emt 0:00:03]} g4+ {[%emt 0:00:00] White got outplayed after the opening.  Weighted Error Value: White=1.24/Black=0.56} 0-1